fUSD/lending_fUSD_20250311
["ID","MTS","AMOUNT","RATE_DAILY","PERIOD"]
[355943735,1741725033786,-1050.54,8.989e-05,2]
[355943736,1741725033797,-500.0,8.989e-05,2]
[355943737,1741725033806,-799.4,8.989e-05,2]
[355943738,1741725033815,-645.77,8.989e-05,2]
[355943739,1741725033824,-1014.33,8.989e-05,2]
[355943740,1741725033834,-623.58,8.989e-05,2]
[355943741,1741725033843,-1156.84,8.989e-05,2]
[355943742,1741725034131,-500.0,8.989e-05,2]
[355943743,1741725034140,-500.0,8.989e-05,2]
[355943744,1741725034150,-500.0,8.989e-05,2]
[355943745,1741725034159,-500.0,8.989e-05,2]
[355943746,1741725034168,-1217.24,8.989e-05,2]
[355943747,1741725034177,-666.73,8.989e-05,2]
[355943748,1741725034187,-500.0,8.989e-05,2]
[355943749,1741725034196,-500.0,8.989e-05,2]
[355943750,1741725034205,-500.0,8.989e-05,2]
[355943751,1741725034215,-500.0,8.989e-05,2]
[355943752,1741725034225,-636.12,8.989e-05,2]
[355943753,1741725034235,-500.0,8.989e-05,2]
[355943754,1741725034245,-500.0,8.989e-05,2]
[355943755,1741725034255,-2210.64,8.989e-05,2]
[355943756,1741725034265,-659.91,8.989e-05,2]
[355943757,1741725034275,-500.0,8.989e-05,2]
[355943758,1741725034284,-545.64,8.989e-05,2]
[355943759,1741725034294,-500.0,8.989e-05,2]
[355943760,1741725034303,-500.0,8.989e-05,2]
[355943761,1741725034313,-1603.88,8.989e-05,2]
[355943762,1741725034322,-502.46229094,8.989e-05,2]
[355943763,1741725034331,-500.0,8.989e-05,2]
[355943764,1741725034340,-515.76,8.989e-05,2]
[355943765,1741725034350,-633.91,8.989e-05,2]
[355943766,1741725034359,-845.89,8.989e-05,2]
[355943767,1741725034368,-500.0,8.989e-05,2]
[355943768,1741725034378,-500.0,8.989e-05,2]
[355943769,1741725034388,-1160.25,8.989e-05,2]
[355943770,1741725034398,-764.98,8.989e-05,2]
[355943771,1741725034407,-500.0,8.989e-05,2]
[355943772,1741725034417,-1469.88,8.989e-05,2]
[355943773,1741725034426,-1386.76,8.989e-05,2]
[355943774,1741725034435,-1238.24,8.989e-05,2]
[355943775,1741725034445,-2036.78,8.989e-05,2]
[355943776,1741725034454,-3065.68,8.989e-05,2]
[355943777,1741725034463,-500.0,8.989e-05,2]
[355943778,1741725034472,-500.0,8.989e-05,2]
[355943779,1741725034481,-500.0,8.989e-05,2]
[355943780,1741725034491,-1415.62,8.989e-05,2]
[355943781,1741725034500,-1589.93,8.989e-05,2]
[355943782,1741725034510,-1123.22,8.989e-05,2]
[355943783,1741725034519,-1527.97,8.989e-05,2]
[355943784,1741725034528,-1387.85,8.989e-05,2]
[355943785,1741725034538,-500.0,8.989e-05,2]
[355943786,1741725034548,-991.28,8.989e-05,2]
[355943787,1741725034558,-6424.91,8.989e-05,2]
[355943788,1741725034568,-540.52,8.989e-05,2]
[355943789,1741725034578,-586.27,8.989e-05,2]
[355943790,1741725034587,-518.87963795,8.989e-05,2]
[355943791,1741725034597,-949.71,8.989e-05,2]
[355943792,1741725034606,-1275.94,8.989e-05,2]
[355943793,1741725034615,-1244.12,8.989e-05,2]
[355943794,1741725034625,-716.7,8.989e-05,2]
[355943795,1741725034634,-500.0,8.989e-05,2]
[355943796,1741725034644,-529.55,8.989e-05,2]
[355943797,1741725034655,-2077.18,8.989e-05,2]
[355943798,1741725034665,-1356.74,8.989e-05,2]
[355943799,1741725034674,-1476.51,8.989e-05,2]
[355943800,1741725034683,-970.61,8.989e-05,2]
[355943801,1741725034694,-1128.86,8.989e-05,2]
[355943802,1741725034703,-526.19,8.989e-05,2]
[355943803,1741725034712,-500.0,8.989e-05,2]
[355943804,1741725034721,-1573.53,8.989e-05,2]
[355943805,1741725034730,-1171.76,8.989e-05,2]
[355943806,1741725034740,-1112.53,8.989e-05,2]
[355943807,1741725034749,-642.16896516,8.989e-05,2]
[355943808,1741725034759,-500.0,8.989e-05,2]
[355943809,1741725034768,-712.35,8.989e-05,2]
[355943810,1741725034778,-2040.16,8.989e-05,2]
[355943811,1741725034787,-500.0,8.989e-05,2]
[355943812,1741725034799,-585.76,8.989e-05,2]
[355943813,1741725034809,-2550.27,8.989e-05,2]
[355943814,1741725034820,-551.39657763,8.989e-05,2]
[355943815,1741725034831,-500.0,8.989e-05,2]
[355943816,1741725034841,-500.0,8.989e-05,2]
[355943817,1741725034850,-500.0,8.989e-05,2]
[355943818,1741725034860,-500.0,8.989e-05,2]
[355943819,1741725034869,-526.14,8.989e-05,2]
[355943820,1741725034879,-500.0,8.989e-05,2]
[355943821,1741725034888,-957.89,8.989e-05,2]
[355943822,1741725034897,-2468.26,8.989e-05,2]
[355943823,1741725034907,-1747.55,8.989e-05,2]
[355943824,1741725034916,-747.89,8.989e-05,2]
[355943825,1741725034926,-500.0,8.989e-05,2]
[355943826,1741725034935,-500.0,8.989e-05,2]
[355943827,1741725034944,-500.0,8.989e-05,2]
[355943828,1741725034954,-1738.02,8.989e-05,2]
[355943829,1741725034963,-500.0,8.989e-05,2]
[355943830,1741725034973,-500.0,8.989e-05,2]
[355943831,1741725034983,-500.0,8.989e-05,2]
[355943832,1741725034991,-936.4,8.989e-05,2]
[355943833,1741725035001,-1825.22,8.989e-05,2]
[355943834,1741725035011,-799.22,8.989e-05,2]
[355943835,1741725035020,-500.0,8.989e-05,2]
[355943836,1741725035029,-937.48,8.989e-05,2]
[355943837,1741725035038,-1696.09,8.989e-05,2]
[355943838,1741725035048,-757.09,8.989e-05,2]
[355943839,1741725035057,-4519.97,8.989e-05,2]
[355943840,1741725035067,-500.0,8.989e-05,2]
[355943841,1741725035076,-1024.38,8.989e-05,2]
[355943842,1741725035086,-1838.45,8.989e-05,2]
[355943843,1741725035095,-1202.28,8.989e-05,2]
[355943844,1741725035105,-1330.3,8.989e-05,2]
[355943845,1741725035114,-848.5,8.989e-05,2]
[355943846,1741725035124,-500.0,8.989e-05,2]
[355943847,1741725035133,-500.0,8.989e-05,2]
[355943848,1741725035143,-4332.83,8.989e-05,2]
[355943849,1741725035152,-1279.51,8.989e-05,2]
[355943850,1741725035161,-849.65,8.989e-05,2]
[355943851,1741725035171,-500.0,8.989e-05,2]
[355943852,1741725035180,-790.4,8.989e-05,2]
[355943853,1741725035190,-500.0,8.989e-05,2]
[355943854,1741725035199,-637.85,8.989e-05,2]
[355943855,1741725035208,-720.98,8.989e-05,2]
[355943856,1741725035218,-3442.67,8.989e-05,2]
[355943857,1741725035228,-1647.29,8.989e-05,2]
[355943858,1741725035237,-822.73,8.989e-05,2]
[355943859,1741725035246,-2323.78,8.989e-05,2]
[355943860,1741725035255,-500.0,8.989e-05,2]
[355943861,1741725035264,-667.57,8.989e-05,2]
[355943862,1741725035274,-500.0,8.989e-05,2]
[355943863,1741725035283,-1083.98,8.989e-05,2]
[355943864,1741725035292,-997.01,8.989e-05,2]
[355943865,1741725035302,-3213.33,8.989e-05,2]
[355943866,1741725035312,-655.83,8.989e-05,2]
[355943867,1741725035321,-500.0,8.989e-05,2]
[355943868,1741725035331,-937.67,8.989e-05,2]
[355943869,1741725035340,-696.5,8.989e-05,2]
[355943870,1741725035349,-2275.59,8.989e-05,2]
[355943871,1741725035358,-626.95,8.989e-05,2]
[355943872,1741725035367,-500.0,8.989e-05,2]
[355943873,1741725035376,-510.79,8.989e-05,2]
[355943874,1741725035386,-500.0,8.989e-05,2]
[355943875,1741725035395,-929.6,8.989e-05,2]
[355943876,1741725035403,-1261.22,8.989e-05,2]
[355943877,1741725035413,-500.0,8.989e-05,2]
[355943878,1741725035422,-532.21,8.989e-05,2]
[355943879,1741725035431,-500.0,8.989e-05,2]
[355943880,1741725035441,-1181.04,8.989e-05,2]
[355943881,1741725035450,-1366.61,8.989e-05,2]
[355943882,1741725035459,-302.0577661,8.989e-05,2]
[355943883,1741725035469,-500.0,8.989e-05,2]
[355943884,1741725035478,-790.34,8.989e-05,2]
[355943885,1741725035487,-500.0,8.989e-05,2]
[355943886,1741725035496,-1055.39,8.989e-05,2]
[355943887,1741725035507,-724.04,8.989e-05,2]
[355943888,1741725035517,-624.43308642,8.99e-05,2]
[355943889,1741725035526,-946.2,8.99e-05,2]
[355943890,1741725035535,-1121.13,8.99e-05,2]
[355943891,1741725035547,-500.0,8.99e-05,2]
[355943892,1741725035556,-500.0,8.99e-05,2]
[355943893,1741725035565,-500.0,8.99e-05,2]
[355943894,1741725035575,-506.52,8.99e-05,2]
[355943895,1741725035584,-1043.16,8.99e-05,2]
[355943896,1741725035593,-500.0,8.99e-05,2]
[355943897,1741725035602,-500.0,8.99e-05,2]
[355943898,1741725035612,-500.0,8.99e-05,2]
[355943899,1741725035621,-517.94,8.99e-05,2]
[355943900,1741725035630,-500.0,8.99e-05,2]
[355943901,1741725035640,-500.0,8.99e-05,2]
[355943902,1741725035650,-500.0,8.99e-05,2]
[355943903,1741725035664,-500.0,8.99e-05,2]
[355943904,1741725035674,-500.0,8.99e-05,2]
[355943905,1741725035684,-542.77,8.99e-05,2]
[355943906,1741725035695,-500.0,8.99e-05,2]
[355943907,1741725035704,-500.0,8.99e-05,2]
[355943908,1741725035713,-500.0,8.99e-05,2]
[355943909,1741725035722,-500.0,8.99e-05,2]
[355943910,1741725035732,-500.0,8.99e-05,2]
[355943911,1741725035741,-721.71,8.99e-05,2]
[355943912,1741725035751,-500.0,8.99e-05,2]
[355943913,1741725035760,-989.18,8.99e-05,2]
[355943914,1741725035769,-500.0,8.99e-05,2]
[355943915,1741725035778,-500.0,8.99e-05,2]
[355943916,1741725035788,-1073.2,8.99e-05,2]
[355943917,1741725035804,-500.0,8.99e-05,2]
[355943918,1741725035813,-500.0,8.99e-05,2]
[355943919,1741725035824,-581.28,8.99e-05,2]
[355943920,1741725035834,-1094.25,8.99e-05,2]
[355943921,1741725035843,-544.64,8.99e-05,2]
[355943922,1741725035852,-500.0,8.99e-05,2]
[355943923,1741725035862,-500.0,8.99e-05,2]
[355943924,1741725035871,-500.0,8.99e-05,2]
[355943925,1741725035880,-698.45,8.99e-05,2]
[355943926,1741725035890,-500.0,8.99e-05,2]
[355943927,1741725035899,-500.0,8.99e-05,2]
[355943928,1741725035908,-500.0,8.99e-05,2]
[355943929,1741725035917,-500.0,8.99e-05,2]
[355943930,1741725035926,-500.0,8.99e-05,2]
[355943931,1741725035935,-1509.83,8.99e-05,2]
[355943932,1741725035945,-500.0,8.99e-05,2]
[355943933,1741725035954,-500.0,8.99e-05,2]
[355943934,1741725035963,-500.0,8.99e-05,2]
[355943935,1741725035973,-608.09,8.99e-05,2]
[355943936,1741725035982,-500.0,8.99e-05,2]
[355943937,1741725035991,-1368.97,8.99e-05,2]
[355943938,1741725036000,-500.0,8.99e-05,2]
[355943939,1741725036010,-1388.35,8.99e-05,2]
[355943940,1741725036019,-500.0,8.99e-05,2]
[355943941,1741725036028,-1459.9,8.99e-05,2]
[355943942,1741725036037,-500.0,8.99e-05,2]
[355943943,1741725036049,-650.16,8.99e-05,2]
[355943944,1741725036059,-500.0,8.99e-05,2]
[355943945,1741725036067,-500.0,8.99e-05,2]
[355943946,1741725036077,-500.0,8.99e-05,2]
[355943947,1741725036086,-500.0,8.99e-05,2]
[355943948,1741725036095,-500.0,8.99e-05,2]
[355943949,1741725036104,-500.0,8.99e-05,2]
[355943950,1741725036113,-1718.98,8.99e-05,2]
[355943951,1741725036123,-500.0,8.99e-05,2]
[355943952,1741725036132,-500.0,8.99e-05,2]
[355943953,1741725036141,-500.0,8.99e-05,7]
[355943954,1741725036151,-500.0,8.99e-05,2]
[355943955,1741725036160,-941.49,8.99e-05,2]
[355943956,1741725036170,-500.0,8.99e-05,2]
[355943957,1741725036179,-692.0,8.99e-05,2]
[355943958,1741725036188,-1152.93,8.99e-05,2]
[355943959,1741725036198,-500.0,8.99e-05,2]
[355943960,1741725036208,-1160.67,8.99e-05,2]
[355943961,1741725036217,-523.3,8.99e-05,2]
[355943962,1741725036226,-500.0,8.99e-05,2]
[355943963,1741725036236,-500.0,8.99e-05,2]
[355943964,1741725036245,-574.43623224,8.99e-05,2]
[355943965,1741725036254,-500.0,8.99e-05,2]
[355943966,1741725036263,-500.0,8.99e-05,2]
[355943967,1741725036273,-1161.66,8.99e-05,2]
[355943968,1741725036282,-1064.8,8.99e-05,2]
[355943969,1741725036293,-500.0,8.99e-05,2]
[355943970,1741725036303,-1399.37,8.99e-05,2]
[355943971,1741725036311,-593.66,8.99e-05,2]
[355943972,1741725036321,-500.0,8.99e-05,2]
[355943973,1741725036331,-500.0,8.99e-05,2]
[355943974,1741725036340,-500.0,8.99e-05,2]
[355943975,1741725036349,-500.0,8.99e-05,2]
[355943976,1741725036358,-1027.41,8.99e-05,2]
[355943977,1741725036367,-686.77,8.99e-05,2]
[355943978,1741725036376,-500.0,8.99e-05,2]
[355943979,1741725036386,-500.0,8.99e-05,2]
[355943980,1741725036395,-500.0,8.99e-05,2]
[355943981,1741725036404,-500.0,8.99e-05,2]
[355943982,1741725036414,-504.11,8.99e-05,2]
[355943983,1741725036423,-909.05,8.99e-05,2]
[355943984,1741725036432,-1517.41,8.99e-05,2]
[355943985,1741725036441,-974.01,8.99e-05,2]
[355943986,1741725036450,-500.0,8.99e-05,2]
[355943987,1741725036460,-905.16,8.99e-05,2]
[355943988,1741725036469,-622.57,8.99e-05,2]
[355943989,1741725036478,-1543.89,8.99e-05,2]
[355943990,1741725036487,-500.0,8.99e-05,2]
[355943991,1741725036497,-842.1,8.99e-05,2]
[355943992,1741725036507,-500.0,8.99e-05,2]
[355943993,1741725036516,-500.0,8.99e-05,2]
[355943994,1741725036526,-500.0,8.99e-05,2]
[355943995,1741725036535,-500.0,8.99e-05,2]
[355943996,1741725036547,-295.24228696,8.99e-05,2]
[355943999,1741725038253,-500.0,8.988e-05,2]
[355944000,1741725038263,-330.77,8.989e-05,2]
[355944001,1741725038275,-169.23,8.989e-05,2]
[355944002,1741725038285,-204.75771304,8.99e-05,2]
[355944003,1741725038296,-500.0,8.99e-05,2]
[355944004,1741725038305,-1237.83,8.99e-05,2]
[355944005,1741725038315,-500.0,8.99e-05,2]
[355944006,1741725038324,-1501.31,8.99e-05,2]
[355944007,1741725038333,-670.33,8.99e-05,2]
[355944008,1741725038342,-500.0,8.99e-05,2]
[355944009,1741725038351,-919.14,8.99e-05,2]
[355944010,1741725038360,-191.95697314,8.99e-05,2]
[355944011,1741725038370,-500.0,8.99e-05,2]
[355944012,1741725038379,-500.0,8.99e-05,2]
[355944013,1741725038389,-1455.26,8.99e-05,2]
[355944014,1741725038398,-500.0,8.99e-05,2]
[355944015,1741725038408,-1898.49,8.99e-05,2]
[355944016,1741725038417,-500.0,8.99e-05,2]
[355944017,1741725038427,-582.97,8.99e-05,2]
[355944018,1741725038436,-97.44481382,8.99e-05,2]
[355944019,1741725038488,-402.55518618,8.99e-05,2]
[355944020,1741725038498,-500.0,8.99e-05,2]
[355944021,1741725038507,-500.0,8.99e-05,2]
[355944022,1741725038517,-500.0,8.99e-05,2]
[355944023,1741725038526,-286.57481382,8.99e-05,2]
[355944024,1741725038537,-213.42518618,8.99e-05,2]
[355944025,1741725038549,-585.18,8.99e-05,2]
[355944026,1741725038559,-500.0,8.99e-05,2]
[355944027,1741725038568,-378.37991382,8.99e-05,2]
[355944028,1741725038590,-238.86008618,8.99e-05,2]
[355944029,1741725038599,-60.86561103,8.99e-05,2]
[355944030,1741725038618,-1057.10438897,8.99e-05,2]
[355944031,1741725038627,-832.7,8.99e-05,2]
[355944032,1741725038636,-500.0,8.99e-05,2]
[355944033,1741725038646,-1527.38,8.99e-05,2]
[355944034,1741725038657,-500.0,8.99e-05,2]
[355944035,1741725038667,-1375.05,8.99e-05,2]
[355944036,1741725038676,-500.0,8.99e-05,2]
[355944037,1741725038686,-500.0,8.99e-05,2]
[355944038,1741725038697,-392.48315111,8.99e-05,2]
[355944039,1741725038706,-1047.45,8.99e-05,2]
[355944040,1741725038716,-500.0,8.99e-05,2]
[355944041,1741725038725,-1355.42,8.99e-05,2]
[355944042,1741725038736,-500.0,8.99e-05,2]
[355944043,1741725038746,-500.0,8.99e-05,2]
[355944044,1741725038756,-500.0,8.99e-05,2]
[355944045,1741725038765,-500.0,8.99e-05,2]
[355944046,1741725038775,-752.4,8.99e-05,2]
[355944047,1741725038785,-580.86,8.99e-05,2]
[355944048,1741725038796,-500.0,8.99e-05,2]
[355944049,1741725038806,-500.0,8.99e-05,2]
[355944050,1741725038816,-500.0,8.99e-05,2]
[355944051,1741725038826,-500.0,8.99e-05,2]
[355944052,1741725038836,-500.0,8.99e-05,2]
[355944053,1741725038846,-500.0,8.99e-05,2]
[355944054,1741725038855,-594.95,8.99e-05,2]
[355944055,1741725038865,-456.20245992,8.99e-05,2]
[355944056,1741725038877,-43.79754008,8.99e-05,2]
[355944057,1741725038887,-653.57,8.99e-05,2]
[355944058,1741725038897,-300.7796106,8.99e-05,2]
[355944059,1741725038955,-357.6903894,8.99e-05,2]
[355944060,1741725038965,-1427.68,8.99e-05,2]
[355944061,1741725038974,-500.0,8.99e-05,2]
[355944062,1741725038983,-703.44,8.99e-05,2]
[355944063,1741725038992,-500.0,8.99e-05,2]
[355944064,1741725039001,-500.0,8.99e-05,2]
[355944065,1741725039010,-500.0,8.99e-05,2]
[355944066,1741725039019,-500.0,8.99e-05,2]
[355944067,1741725039029,-843.94,8.99e-05,2]
[355944068,1741725039038,-638.18,8.99e-05,2]
[355944069,1741725039050,-500.0,8.99e-05,2]
[355944070,1741725039059,-756.55,8.99e-05,2]
[355944071,1741725039069,-500.0,8.99e-05,2]
[355944072,1741725039078,-983.69,8.99e-05,2]
[355944073,1741725039087,-500.0,8.99e-05,2]
[355944074,1741725039097,-500.0,8.99e-05,2]
[355944075,1741725039106,-383.68002842,8.99e-05,2]
[355944076,1741725039115,-737.41,8.99e-05,2]
[355944077,1741725039125,-500.0,8.99e-05,2]
[355944078,1741725039135,-618.0,8.99e-05,2]
[355944079,1741725039144,-1678.67,8.99e-05,2]
[355944080,1741725039154,-500.0,8.99e-05,2]
[355944081,1741725039164,-500.0,8.99e-05,2]
[355944082,1741725039173,-500.0,8.99e-05,2]
[355944083,1741725039183,-893.41,8.99e-05,2]
[355944084,1741725039192,-500.0,8.99e-05,2]
[355944085,1741725039202,-500.0,8.99e-05,2]
[355944086,1741725039212,-1020.79,8.99e-05,2]
[355944087,1741725039221,-927.89,8.99e-05,2]
[355944088,1741725039231,-541.06,8.99e-05,2]
[355944089,1741725039240,-714.05,8.99e-05,2]
[355944090,1741725039249,-500.0,8.99e-05,2]
[355944091,1741725039259,-1037.6,8.99e-05,2]
[355944092,1741725039268,-1024.6,8.99e-05,2]
[355944093,1741725039277,-500.0,8.99e-05,2]
[355944094,1741725039286,-500.0,8.99e-05,2]
[355944095,1741725039296,-500.0,8.99e-05,2]
[355944096,1741725039305,-500.0,8.99e-05,2]
[355944097,1741725039315,-500.0,8.99e-05,2]
[355944098,1741725039324,-1352.86,8.99e-05,2]
[355944099,1741725039334,-500.0,8.99e-05,2]
[355944100,1741725039343,-500.0,8.99e-05,2]
[355944101,1741725039354,-500.0,8.991e-05,2]
[355944102,1741725039363,-909.32,8.991e-05,2]
[355944103,1741725039372,-1391.11,8.991e-05,2]
[355944104,1741725039381,-582.0,8.991e-05,2]
[355944105,1741725039390,-500.0,8.991e-05,2]
[355944106,1741725039400,-500.0,8.991e-05,2]
[355944107,1741725039409,-500.0,8.991e-05,2]
[355944108,1741725039418,-481.92637005,8.991e-05,2]
[355944109,1741725039428,-932.43,8.991e-05,2]
[355944110,1741725039437,-590.08,8.991e-05,2]
[355944111,1741725039447,-1370.13,8.991e-05,2]
[355944112,1741725039456,-500.0,8.991e-05,2]
[355944113,1741725039466,-500.0,8.991e-05,2]
[355944114,1741725039475,-679.46,8.991e-05,2]
[355944115,1741725039484,-1588.96,8.991e-05,2]
[355944116,1741725039494,-11160.17408049,8.998e-05,2]
[355944117,1741725039503,-1064.68506676,9e-05,2]
[355944118,1741725039512,-53546.67657583,9e-05,2]
[355944119,1741725039521,-300.0,9e-05,3]
[355944120,1741725039530,-409.13,9.1e-05,2]
[355944121,1741725039540,-571.0,9.158e-05,2]
[355944122,1741725039550,-641.0,9.158e-05,2]
[355944123,1741725039560,-1459.0,9.158e-05,2]
[355944124,1741725039569,-786.0,9.158e-05,2]
[355944125,1741725039578,-541.0,9.158e-05,2]
[355944126,1741725039588,-1428.0,9.158e-05,2]
[355944127,1741725039597,-907.0,9.158e-05,2]
[355944128,1741725039606,-1270.0,9.158e-05,2]
[355944129,1741725039615,-4077.0,9.158e-05,2]
[355944130,1741725039624,-412.575,9.158e-05,2]
[355944131,1741725039634,-3932.0,9.158e-05,2]
[355944132,1741725039643,-150.0,9.158e-05,2]
[355944133,1741725039657,-2033.0,9.158e-05,2]
[355944134,1741725039666,-643.0,9.158e-05,2]
[355944135,1741725039676,-1278.0,9.158e-05,2]
[355944136,1741725039685,-437.78,9.195e-05,2]
[355944137,1741725039694,-300.0,9.195e-05,2]
[355944138,1741725039705,-7066.47940853,9.219e-05,2]
[355944139,1741725039714,-180.32896794,9.243e-05,2]
[355944140,1741725039723,-160.36388445,9.243e-05,2]
[355944141,1741725039733,-500.0,9.262e-05,2]
[355944142,1741725039744,-877.15,9.262e-05,2]
[355944143,1741725039753,-500.0,9.262e-05,2]
[355944144,1741725039762,-500.0,9.262e-05,2]
[355944145,1741725039771,-543.24,9.262e-05,2]
[355944146,1741725039780,-1153.63,9.262e-05,2]
[355944147,1741725039790,-864.22,9.262e-05,2]
[355944148,1741725039801,-500.0,9.262e-05,2]
[355944149,1741725039811,-500.0,9.262e-05,2]
[355944150,1741725039820,-500.0,9.262e-05,2]
[355944151,1741725039829,-500.0,9.262e-05,2]
[355944152,1741725039839,-523.82,9.262e-05,2]
[355944153,1741725039848,-744.29,9.262e-05,2]
[355944154,1741725039857,-500.0,9.262e-05,2]
[355944155,1741725039867,-1104.65,9.262e-05,2]
[355944156,1741725039876,-500.0,9.262e-05,2]
[355944157,1741725039885,-500.0,9.262e-05,2]
[355944158,1741725039895,-500.0,9.262e-05,2]
[355944159,1741725039904,-627.56,9.262e-05,2]
[355944160,1741725039913,-500.0,9.262e-05,2]
[355944161,1741725039922,-500.0,9.262e-05,2]
[355944162,1741725039931,-500.0,9.262e-05,2]
[355944163,1741725039941,-500.0,9.262e-05,2]
[355944164,1741725039950,-605.11,9.262e-05,2]
[355944165,1741725039959,-500.0,9.262e-05,2]
[355944166,1741725039968,-1321.33,9.262e-05,2]
[355944167,1741725039978,-500.0,9.262e-05,2]
[355944168,1741725039988,-500.0,9.262e-05,2]
[355944169,1741725039997,-500.0,9.262e-05,2]
[355944170,1741725040006,-1443.54,9.262e-05,2]
[355944171,1741725040015,-500.0,9.262e-05,2]
[355944172,1741725040024,-500.0,9.262e-05,2]
[355944173,1741725040034,-500.0,9.262e-05,2]
[355944174,1741725040044,-500.0,9.262e-05,2]
[355944176,1741725040053,-500.0,9.262e-05,2]
[355944177,1741725040063,-500.0,9.262e-05,2]
[355944178,1741725040072,-500.0,9.262e-05,2]
[355944179,1741725040081,-500.0,9.262e-05,2]
[355944180,1741725040090,-516.83,9.262e-05,2]
[355944181,1741725040100,-500.0,9.262e-05,2]
[355944182,1741725040110,-500.0,9.262e-05,2]
[355944183,1741725040119,-500.0,9.262e-05,2]
[355944184,1741725040128,-670.51,9.262e-05,2]
[355944185,1741725040137,-500.0,9.262e-05,2]
[355944186,1741725040146,-500.0,9.262e-05,2]
[355944187,1741725040155,-1113.61,9.262e-05,2]
[355944188,1741725040165,-597.85,9.262e-05,2]
[355944189,1741725040174,-500.0,9.262e-05,2]
[355944190,1741725040183,-1462.28,9.262e-05,2]
[355944191,1741725040192,-500.0,9.262e-05,2]
[355944192,1741725040202,-1411.9,9.262e-05,2]
[355944193,1741725040211,-647.72,9.262e-05,2]
[355944194,1741725040221,-507.82,9.262e-05,2]
[355944195,1741725040230,-500.0,9.262e-05,2]
[355944196,1741725040239,-500.0,9.262e-05,2]
[355944197,1741725040248,-934.84,9.262e-05,2]
[355944198,1741725040257,-500.0,9.262e-05,2]
[355944199,1741725040267,-500.0,9.262e-05,2]
[355944200,1741725040275,-586.17655288,9.262e-05,2]
[355944201,1741725040285,-500.0,9.262e-05,2]
[355944202,1741725040294,-713.23,9.262e-05,2]
[355944203,1741725040303,-500.0,9.262e-05,2]
[355944204,1741725040312,-677.98,9.262e-05,2]
[355944205,1741725040321,-693.96,9.262e-05,2]
[355944206,1741725040330,-500.0,9.262e-05,2]
[355944207,1741725040339,-583.57,9.262e-05,2]
[355944208,1741725040349,-559.95,9.262e-05,2]
[355944209,1741725040358,-500.0,9.262e-05,2]
[355944210,1741725040367,-500.0,9.262e-05,2]
[355944211,1741725040376,-760.06,9.262e-05,2]
[355944212,1741725040385,-500.0,9.262e-05,2]
[355944213,1741725040395,-500.0,9.262e-05,2]
[355944214,1741725040404,-259.92280112,9.262e-05,2]
[355944215,1741725040413,-500.0,9.262e-05,2]
[355944216,1741725040422,-559.97,9.262e-05,2]
[355944217,1741725040431,-744.02,9.262e-05,2]
[355944218,1741725040439,-763.77,9.262e-05,2]
[355944219,1741725040448,-892.97,9.262e-05,2]
[355944220,1741725040457,-500.0,9.262e-05,2]
[355944221,1741725040466,-500.0,9.262e-05,2]
[355944222,1741725040475,-500.0,9.262e-05,2]
[355944223,1741725040484,-500.0,9.262e-05,2]
[355944224,1741725040492,-565.93,9.262e-05,2]
[355944225,1741725040501,-500.0,9.262e-05,2]
[355944226,1741725040510,-660.65,9.262e-05,2]
[355944227,1741725040519,-1065.47,9.262e-05,2]
[355944228,1741725040529,-500.0,9.262e-05,2]
[355944229,1741725040538,-500.0,9.262e-05,2]
[355944230,1741725040548,-511.01,9.262e-05,2]
[355944231,1741725040557,-500.0,9.262e-05,2]
[355944232,1741725040566,-500.0,9.262e-05,2]
[355944233,1741725040575,-500.0,9.262e-05,2]
[355944234,1741725040584,-500.0,9.262e-05,2]
[355944235,1741725040592,-500.0,9.262e-05,2]
[355944236,1741725040602,-500.0,9.262e-05,2]
[355944237,1741725040611,-500.0,9.262e-05,2]